bitfinex-derivatives/quotes_SOLF0:USTF0_20241218
["timestamp","ask_amount","ask_price","bid_price","bid_amount"]
[1734522389148,2.2965,217.75,217.72,2.2968]
[1734522389853,7.1431091,217.78,217.72,2.2968]
[1734522390053,2.2964,217.76,217.72,2.2968]
[1734522390252,7.1431091,217.78,217.72,2.2968]
[1734522390454,7.1431091,217.76,217.65,6.7811]
[1734522390647,2.2969,217.72,217.66,7.1431091]
[1734522391047,2.2969,217.72,217.68,2.2972]
[1734522391257,2.2969,217.72,217.68,9.4403091]
[1734522393360,2.2968,217.73,217.7,7.1431091]
[1734522393553,2.06,217.75,217.7,7.1431091]
[1734522394059,2.2967,217.74,217.7,7.1431091]
[1734522394556,2.2963,217.77,217.73,2.2966]
[1734522394755,2.06,217.81,217.74,7.1431091]
[1734522394957,9.2031091,217.82,217.74,7.1431091]
[1734522395259,7.1431091,217.82,217.74,7.1431091]
[1734522395454,2.296,217.81,217.74,7.1431091]
[1734522395957,2.296,217.81,217.76,2.2964]
[1734522397355,2.296,217.81,217.76,9.4395091]
[1734522398059,2.296,217.81,217.76,7.1431091]
[1734522398254,4.3557,217.83,217.79,2.296]
[1734522398756,2.2957,217.83,217.79,2.296]
[1734522398955,2.2959,217.82,217.77,2.2962]
[1734522399457,7.1431091,217.82,217.74,7.1431091]
[1734522399660,7.1431091,217.82,217.75,2.2964]
[1734522399953,7.1431091,217.82,217.74,7.1431091]
[1734522400153,2.2961,217.8,217.76,2.2964]
[1734522400357,7.1431091,217.82,217.74,7.1431091]
[1734522401057,2.2961,217.79,217.74,7.1431091]
[1734522401857,2.296,217.8,217.76,2.2964]
[1734522403751,7.1431091,217.82,217.76,2.2964]
[1734522403952,2.2961,217.79,217.76,2.2964]
[1734522405061,2.2961,217.79,217.75,2.2965]
[1734522406958,9.2031091,217.8,217.7,2.06]
[1734522407154,2.2963,217.77,217.73,2.2967]
[1734522407558,7.1431091,217.78,217.68,7.52696935]
[1734522407755,7.1431091,217.78,217.7,7.1431091]
[1734522408469,2.2964,217.76,217.72,2.2968]
[1734522408961,2.2967,217.74,217.7,9.4401091]
[1734522409558,2.2967,217.74,217.71,2.2969]
[1734522411257,2.06,217.76,217.7,7.1431091]
[1734522411562,2.06,217.76,217.72,7.1431091]
[1734522411864,2.06,217.76,217.73,2.2966]
[1734522413262,2.2964,217.77,217.73,2.2966]
[1734522413563,2.2964,217.76,217.73,2.2966]
[1734522414463,2.2965,217.75,217.72,9.4399091]
[1734522415262,2.2966,217.74,217.72,9.4399091]
[1734522415461,7.1431091,217.75,217.69,7.77158866]
[1734522415662,7.1431091,217.75,217.69,2.2971]
[1734522415863,2.04,217.74,217.69,2.2971]
[1734522417571,2.2969,217.72,217.69,2.2971]
[1734522418267,2.04,217.74,217.69,2.2971]
[1734522418467,2.2968,217.72,217.69,2.2971]
[1734522418963,2.04,217.74,217.69,2.2971]
[1734522419164,2.2967,217.73,217.7,2.297]
[1734522419362,2.04,217.74,217.7,7.1431091]
[1734522419568,2.2964,217.76,217.7,7.1431091]
[1734522419781,2.2964,217.76,217.72,2.2967]
[1734522420570,3.5849,217.78,217.72,2.2967]
[1734522420766,2.2965,217.75,217.72,2.2967]
[1734522421167,2.2964,217.77,217.73,2.2966]
[1734522422364,3.5849,217.78,217.73,2.2966]
[1734522422365,2.2964,217.76,217.73,2.2966]
[1734522423370,7.1431091,217.81,217.74,7.1431091]
[1734522423574,2.04,217.8,217.74,7.1431091]
[1734522423762,2.04,217.82,217.74,7.1431091]
[1734522423968,2.296,217.8,217.76,2.2963]
[1734522424171,2.04,217.82,217.76,7.1431091]
[1734522424365,1.5544,217.85,217.76,7.1431091]
[1734522424366,2.04,217.83,217.76,7.1431091]
[1734522424969,9.1831091,217.83,217.76,7.1431091]
[1734522425472,2.2958,217.82,217.78,2.2961]
[1734522425873,2.2958,217.82,217.76,7.1431091]
[1734522426073,9.4388091,217.83,217.8,2.296]
[1734522426571,2.2957,217.83,217.8,2.296]
[1734522426774,2.2955,217.85,217.78,7.1431091]
[1734522426976,13.8,217.97,217.78,7.1431091]
[1734522426977,49.53439959,217.92,217.8,7.1431091]
[1734522427273,7.1431091,217.87,217.8,7.1431091]
[1734522427468,2.2955,217.85,217.81,2.2959]
[1734522428273,7.1431091,217.85,217.78,7.1431091]
[1734522429173,2.2955,217.85,217.79,2.296]
[1734522429374,7.1431091,217.85,217.78,7.1431091]
[1734522429874,2.2957,217.83,217.79,2.2961]
[1734522430674,2.2958,217.82,217.78,9.4393091]
[1734522432372,9.1831091,217.83,217.75,5.3146]
[1734522432575,7.1431091,217.79,217.7,2.04]
[1734522432772,7.1431091,217.79,217.71,7.1431091]
[1734522433481,7.1431091,217.79,217.7,2.04]
[1734522433482,2.2964,217.76,217.72,2.2967]
[1734522433777,7.1431091,217.77,217.7,9.1831091]
[1734522434375,7.1431091,217.77,217.7,7.1431091]
[1734522435172,7.1431091,217.75,217.68,5.56107438]
[1734522435371,9.1831091,217.75,217.68,5.56107438]
[1734522435876,9.1831091,217.75,217.68,7.85827438]
[1734522436178,2.04,217.75,217.68,5.56107438]
[1734522436378,7.1431091,217.74,217.68,5.56107438]
[1734522436878,2.2969,217.72,217.68,5.56107438]
[1734522437075,7.1431091,217.74,217.68,5.56107438]
[1734522437275,2.297,217.71,217.68,5.56107438]
[1734522439878,2.2968,217.72,217.69,7.1431091]
[1734522440179,2.04,217.76,217.69,7.1431091]
[1734522440581,2.2967,217.74,217.7,2.297]
[1734522441675,2.2968,217.73,217.69,7.1431091]
[1734522443485,2.2968,217.73,217.69,9.4402091]
[1734522445187,7.1431091,217.75,217.68,5.56107438]
[1734522445889,2.2969,217.71,217.68,5.56107438]
[1734522448597,2.04,217.86,217.69,9.1831091]
[1734522448798,7.1431091,217.84,217.77,7.1431091]
[1734522448991,2.04,217.86,217.77,7.1431091]
[1734522449197,2.2957,217.83,217.77,7.1431091]
[1734522449991,7.1431091,217.85,217.73,2.04]
[1734522450188,2.296,217.8,217.73,9.1831091]
[1734522451297,2.2962,217.79,217.73,9.1831091]
[1734522451495,7.1431091,217.79,217.73,7.1431091]
[1734522451689,7.1431091,217.79,217.71,7.1431091]
[1734522452497,2.2963,217.77,217.73,2.2967]
[1734522455701,7.1431091,217.79,217.71,7.1431091]
[1734522455900,2.2962,217.78,217.71,7.1431091]
[1734522456301,2.2962,217.78,217.73,2.2966]
[1734522458403,2.2962,217.78,217.74,2.2966]
[1734522459203,2.2964,217.76,217.72,2.2967]
[1734522461006,2.2965,217.75,217.72,2.2967]
[1734522461202,2.04,217.76,217.69,1.4462]
[1734522461406,7.1431091,217.75,217.69,7.1431091]
[1734522461607,7.1431091,217.75,217.68,5.56107438]
[1734522461608,2.2969,217.72,217.68,5.56107438]
[1734522462308,2.2969,217.72,217.69,7.1431091]
[1734522463206,2.2969,217.72,217.68,7.85827438]
[1734522464508,2.2967,217.73,217.69,2.2971]
[1734522465705,2.2968,217.72,217.69,2.2971]
[1734522468514,2.04,217.79,217.73,2.2966]
[1734522468712,9.1831091,217.79,217.73,2.2966]
[1734522469413,2.2963,217.78,217.73,2.2966]
[1734522469711,9.1831091,217.79,217.73,2.2966]
[1734522470512,2.2964,217.77,217.73,2.2966]
[1734522473009,2.2964,217.77,217.72,2.2968]
[1734522473214,2.2964,217.77,217.7,7.1431091]
[1734522474413,2.2964,217.77,217.73,2.2967]
[1734522480820,2.2964,217.77,217.74,2.2966]
[1734522481017,2.2962,217.78,217.74,2.2966]
[1734522481220,1.4812,217.83,217.74,7.1431091]
[1734522481420,7.1431091,217.84,217.76,7.1431091]
[1734522481617,4.3357,217.83,217.76,7.1431091]
[1734522481820,2.2957,217.83,217.76,7.1431091]
[1734522482116,2.2957,217.83,217.73,3.0588]
[1734522482117,2.2957,217.83,217.79,2.296]
[1734522482621,9.4387091,217.84,217.81,2.2959]
[1734522482817,11.4787091,217.84,217.73,3.0588]
[1734522483121,11.4787091,217.84,217.8,2.2959]
[1734522483319,4.3356,217.84,217.8,2.2959]
[1734522483519,4.3356,217.84,217.77,7.1431091]
[1734522484220,2.2956,217.84,217.77,7.1431091]
[1734522484616,2.2956,217.84,217.8,2.2959]
[1734522487422,2.2957,217.83,217.79,2.2961]
[1734522489315,7.1431091,217.85,217.77,7.1431091]
[1734522489516,2.04,217.86,217.79,7.1431091]
[1734522489717,9.1831091,217.86,217.79,7.1431091]
[1734522489917,2.04,217.87,217.81,7.1431091]
[1734522490127,11.4782091,217.88,217.83,2.2957]
[1734522490426,11.4782091,217.88,217.81,7.1431091]
[1734522490621,4.3351,217.88,217.84,2.2955]
[1734522492623,2.2952,217.87,217.84,2.2955]
[1734522492820,7.1431091,217.87,217.8,2.04]
[1734522493030,7.1431091,217.85,217.77,3.5321]
[1734522493227,7.1431091,217.85,217.77,10.6752091]
[1734522493528,7.1431091,217.85,217.8,2.296]
[1734522494629,2.2956,217.84,217.8,2.296]
[1734522497330,2.2956,217.84,217.79,7.1431091]
[1734522497529,2.2956,217.84,217.81,2.2958]
[1734522498533,7.1431091,217.87,217.81,2.2958]
[1734522498729,7.1431091,217.87,217.82,2.2957]
[1734522499030,2.9998,217.91,217.81,7.1431091]
[1734522499234,2.04,217.91,217.83,7.1431091]
[1734522499830,7.1431091,217.92,217.87,2.2952]
[1734522499831,11.4779091,217.92,217.87,2.2952]
[1734522500134,9.4379091,217.92,217.87,2.2952]
[1734522500734,2.2948,217.92,217.87,2.2952]
[1734522503633,9.4379091,217.92,217.87,2.2952]
[1734522506036,7.1431091,217.92,217.85,7.1431091]
[1734522506235,2.2949,217.9,217.83,7.1431091]
[1734522506936,2.2949,217.9,217.86,2.2953]
[1734522507136,9.4380091,217.9,217.86,2.2953]
[1734522510749,2.2949,217.9,217.86,2.2953]
[1734522511251,7.1431091,217.87,217.8,7.1431091]
[1734522511649,2.2957,217.84,217.79,7.88098595]
[1734522511855,2.2957,217.84,217.79,5.58498595]
[1734522513348,9.1631091,217.85,217.78,7.1431091]
[1734522513654,7.1431091,217.81,217.75,7.1431091]
[1734522513953,7.1431091,217.83,217.76,2.2963]
[1734522514144,2.02,217.82,217.76,2.2963]
[1734522514655,2.2959,217.81,217.76,2.2963]
[1734522516455,2.02,217.82,217.76,2.2963]
[1734522516657,2.296,217.8,217.76,2.2963]
[1734522526363,7.1431091,217.9,217.79,7.1431091]
[1734522526663,7.1431091,217.9,217.83,7.1431091]
[1734522527257,9.1631091,217.9,217.83,7.1431091]
[1734522527460,2.2951,217.88,217.85,2.2954]
[1734522527959,2.2951,217.88,217.84,2.2955]
[1734522528159,2.2951,217.89,217.84,2.2955]
[1734522528359,9.1631091,217.9,217.84,2.2955]
[1734522528858,2.2952,217.88,217.84,2.2955]
[1734522532162,2.2953,217.87,217.84,2.2955]
[1734522533767,2.2955,217.85,217.82,2.2958]
[1734522534066,2.2955,217.85,217.79,7.1431091]
[1734522534359,9.1631091,217.86,217.79,12.75675142]
[1734522534565,2.2956,217.84,217.8,2.296]
[1734522536265,2.02,217.86,217.79,12.75675142]
[1734522536458,4.3154,217.86,217.82,2.2957]
[1734522536658,4.3154,217.86,217.81,7.1431091]
[1734522538469,4.3154,217.86,217.83,2.2956]
[1734522539968,11.4585091,217.86,217.83,2.2956]
[1734522540574,2.2955,217.85,217.82,2.2958]
[1734522542270,2.2955,217.85,217.81,2.2959]
[1734522544378,2.02,217.88,217.83,7.1431091]
[1734522545070,4.3152,217.88,217.84,2.2955]
[1734522545270,2.02,217.88,217.84,2.2955]
[1734522546569,2.2953,217.87,217.84,2.2955]
[1734522547576,9.4385091,217.86,217.82,2.2957]
[1734522547777,7.1431091,217.86,217.82,2.2957]
[1734522548376,2.2955,217.85,217.82,2.2957]
[1734522548976,2.2956,217.84,217.81,2.2958]
[1734522550077,4.3156,217.84,217.81,2.2958]
[1734522551281,1.4731,217.91,217.84,2.2955]
[1734522551282,4.3152,217.88,217.84,2.2955]
[1734522551482,2.2952,217.88,217.84,2.2955]
[1734522551780,4.3152,217.88,217.84,2.2955]
[1734522551983,2.2952,217.87,217.84,2.2955]
[1734522552178,2.02,217.88,217.85,2.2955]
[1734522553483,4.3152,217.88,217.85,2.2955]
[1734522560287,2.02,217.9,217.88,2.2951]
[1734522560481,7.1431091,217.94,217.87,7.1431091]
[1734522560681,29.61270779,217.95,217.89,7.1431091]
[1734522560877,27.59270779,217.95,217.91,7.1431091]
[1734522561084,27.59270779,217.95,217.94,2.2945]
[1734522561287,2.02,218.0,217.93,7.1431091]
[1734522561479,189.36888914,218.01,217.97,7.1431091]
[1734522561684,189.36888914,218.01,218.0,2.2939]
[1734522562483,2.02,218.05,218.02,2.2936]
[1734522562888,7.1431091,218.1,218.03,7.1431091]
[1734522563189,2.02,218.1,218.03,7.1431091]
[1734522563383,2.02,218.1,218.05,7.1431091]
[1734522563584,189.36888914,218.11,218.08,2.293]
[1734522563780,189.36888914,218.11,218.07,7.1431091]
[1734522563983,27.58884448,218.12,218.07,7.1431091]
[1734522564182,9.1631091,218.14,218.09,2.2929]
[1734522564787,7.1431091,218.12,217.97,3.1407]
[1734522564989,7.1431091,218.08,218.01,2.2937]
[1734522565189,9.1631091,218.08,218.01,9.4368091]
[1734522565691,2.02,218.08,218.02,2.2936]
[1734522566091,2.02,218.08,218.01,7.1431091]
[1734522567087,4.313,218.08,218.01,7.1431091]
[1734522567295,4.313,218.08,218.03,5.56590955]
[1734522568794,2.2931,218.07,218.03,5.56590955]
[1734522569694,7.1431091,218.09,218.03,5.56590955]
[1734522569891,2.2933,218.06,218.01,7.1431091]
[1734522570195,2.2933,218.06,218.0,7.1431091]
[1734522570688,2.2933,218.06,218.02,5.6228898]
[1734522571498,7.1431091,218.05,217.98,8.7339091]
[1734522571798,7.1431091,218.03,217.98,1.5908]
[1734522572000,2.2939,218.0,217.95,7.1431091]
[1734522572196,9.1631091,218.01,217.95,7.1431091]
[1734522572396,2.02,218.0,217.95,7.1431091]
[1734522572999,2.294,217.99,217.95,7.1431091]
[1734522573498,2.294,217.99,217.96,5.38227957]
[1734522573691,7.1431091,217.99,217.91,1.5693]
[1734522574096,7.1431091,217.99,217.92,7.1431091]
[1734522574898,7.1431091,217.99,217.93,5.53761708]
[1734522575098,7.1431091,217.97,217.9,7.1431091]
[1734522575293,2.2946,217.94,217.88,2.2951]
[1734522575499,2.2946,217.94,217.9,7.1431091]
[1734522575696,2.02,217.96,217.9,7.1431091]
[1734522575996,2.2945,217.94,217.9,7.1431091]
[1734522577901,2.02,217.96,217.9,7.1431091]
[1734522578100,2.02,217.96,217.88,7.1431091]
[1734522578999,2.2948,217.91,217.88,7.1431091]
[1734522580502,2.2948,217.91,217.88,12.58918456]
[1734522580701,2.02,217.92,217.88,7.1431091]
[1734522581197,2.02,217.92,217.86,7.1431091]
[1734522581403,2.2949,217.9,217.86,7.1431091]
[1734522581805,2.02,217.92,217.86,7.1431091]
[1734522582208,2.02,217.92,217.84,8.6971091]
[1734522582209,2.2952,217.88,217.84,8.6971091]
[1734522582509,7.1431091,217.85,217.6,51.05374524]
[1734522582696,2.2968,217.73,217.68,7.1431091]
[1734522582904,2.02,217.72,217.63,4.5104]
[1734522583102,7.1431091,217.71,217.63,4.5104]
[1734522583307,2.02,217.7,217.65,5.46837766]
[1734522583601,2.02,217.69,217.65,12.61148676]
[1734522584006,2.02,217.68,217.65,5.46837766]
[1734522584208,2.2969,217.72,217.65,5.46837766]
[1734522584407,2.02,217.71,217.65,5.46837766]
[1734522584605,2.2969,217.72,217.65,5.46837766]
[1734522584905,2.02,217.71,217.65,7.76587766]
[1734522585209,2.02,217.7,217.65,5.46837766]
[1734522585606,2.02,217.69,217.65,5.46837766]
[1734522586410,2.2967,217.74,217.66,2.2974]
[1734522586608,2.02,217.73,217.66,2.2974]
[1734522586907,2.02,217.72,217.66,2.2974]
[1734522588212,2.2969,217.71,217.65,5.46837766]
[1734522590405,2.02,217.72,217.63,4.5104]
[1734522590605,2.02,217.72,217.63,6.8081]
[1734522590806,11.14992349,217.7,217.63,6.8081]
[1734522591107,2.2973,217.68,217.63,4.5104]
[1734522591315,13.16992349,217.67,217.54,11.14992349]
[1734522591506,2.02,217.66,217.55,4.5693]
[1734522592011,2.02,217.66,217.59,5.5814019]
[1734522592409,2.2976,217.65,217.59,5.5814019]
[1734522593111,2.02,217.66,217.59,5.5814019]
[1734522593709,13.44732349,217.67,217.59,5.5814019]
[1734522593908,2.1,217.66,217.59,5.5814019]
[1734522594113,2.1,217.65,217.59,5.5814019]
[1734522594314,2.1,217.64,217.61,2.2979]
[1734522594509,2.1,217.64,217.59,5.5814019]
[1734522595506,2.2968,217.73,217.6,11.14992349]
[1734522595713,2.1,217.74,217.6,11.14992349]
[1734522596116,2.1,217.74,217.68,2.2972]
[1734522597521,2.2966,217.74,217.68,2.2972]
[1734522599421,13.24992349,217.75,217.7,2.297]
[1734522600423,15.54652349,217.75,217.7,2.297]
[1734522602724,13.24992349,217.75,217.7,2.297]
[1734522602920,2.2966,217.74,217.7,2.297]
[1734522604025,13.24992349,217.75,217.72,2.2968]
[1734522604225,11.14992349,217.75,217.72,2.2968]
[1734522605222,13.24992349,217.78,217.75,2.2965]
[1734522605421,13.8,217.88,217.7,2.1]
[1734522605422,11.14992349,217.81,217.7,2.1]
[1734522605821,2.1,217.82,217.72,11.14992349]
[1734522606025,2.1,217.83,217.72,11.14992349]
[1734522606227,2.1,217.83,217.73,1.6007]
[1734522607024,4.3958,217.83,217.77,2.2962]
[1734522607714,4.3958,217.83,217.78,2.2961]
[1734522608223,2.2958,217.82,217.78,2.2961]
[1734522609929,2.1,217.83,217.79,2.296]
[1734522610326,15.54562349,217.84,217.79,2.296]
[1734522610629,13.24992349,217.84,217.79,2.296]
[1734522610931,2.2957,217.83,217.79,2.296]
[1734522611625,15.54552349,217.84,217.8,2.296]
[1734522611823,13.24992349,217.84,217.74,2.1]
[1734522612424,2.2957,217.83,217.74,2.1]
[1734522612726,11.14992349,217.87,217.75,11.14992349]
[1734522612926,11.14992349,217.9,217.78,11.14992349]
[1734522613226,2.1,217.91,217.87,2.2952]
[1734522613527,2.1,217.92,217.81,11.14992349]
[1734522613829,4.3947,217.92,217.87,2.2952]
[1734522615229,2.1,217.92,217.82,3.614]
[1734522615428,4.3947,217.92,217.82,3.614]
[1734522615825,4.3947,217.92,217.87,2.2952]
[1734522616528,2.2947,217.92,217.87,2.2952]
[1734522617223,2.295,217.9,217.85,2.2954]
[1734522617431,2.1,217.89,217.82,1.514]
[1734522617630,2.1,217.89,217.79,2.1]
[1734522618329,2.1,217.89,217.82,5.52392575]
[1734522618526,2.1,217.89,217.76,1.5063]
[1734522618731,11.14992349,217.87,217.77,2.1]
[1734522619733,2.1,217.89,217.77,2.1]
[1734522620429,2.1,217.89,217.78,11.14992349]
[1734522621625,2.1,217.89,217.85,2.2954]
[1734522621824,2.2949,217.9,217.85,2.2954]
[1734522622024,2.08,217.9,217.85,2.2954]
[1734522623433,2.2951,217.89,217.85,2.2954]
[1734522626138,4.3749,217.9,217.86,2.2953]
[1734522626337,2.08,217.9,217.81,11.14992349]
[1734522626539,2.08,217.9,217.81,13.22992349]
[1734522627429,2.08,217.9,217.87,2.2952]
[1734522630035,11.14992349,217.93,217.84,5.4437183]
[1734522630036,2.2946,217.93,217.84,5.4437183]
[1734522630236,11.49740062,217.93,217.86,7.12280062]
[1734522631542,11.49740062,217.93,217.9,2.2949]
[1734522631938,2.2946,217.93,217.9,2.2949]
[1734522632339,7.12280062,217.91,217.89,2.295]
[1734522632642,2.2947,217.92,217.89,2.295]
[1734522637037,2.2947,217.92,217.88,2.2951]
[1734522637634,2.2949,217.91,217.88,2.2951]
[1734522637837,2.2949,217.91,217.86,7.12280062]
[1734522638038,2.2949,217.91,217.87,2.2952]
[1734522642036,2.295,217.9,217.86,2.2953]
[1734522643543,2.2952,217.88,217.85,2.2954]
[1734522643742,7.12280062,217.87,217.76,1.5063]
[1734522644038,7.12280062,217.87,217.8,7.12280062]
[1734522644236,2.2954,217.86,217.82,2.2957]
[1734522644435,7.12280062,217.87,217.82,2.2957]
[1734522645648,2.2955,217.85,217.82,2.2957]
[1734522654850,2.2959,217.81,217.77,2.2962]
[1734522655051,7.12280062,217.83,217.77,2.2962]
[1734522655252,9.16280062,217.83,217.77,2.2962]
[1734522656958,2.296,217.81,217.77,2.2962]
[1734522657160,9.16280062,217.83,217.77,2.2962]
[1734522658356,2.2961,217.8,217.77,2.2962]
[1734522665664,9.16280062,217.83,217.76,9.41920062]
[1734522665963,9.16280062,217.83,217.76,7.12280062]
[1734522666462,9.16280062,217.83,217.75,3.8245]
[1734522666463,7.12280062,217.81,217.75,3.8245]
[1734522666658,7.12280062,217.81,217.74,2.2966]
[1734522667260,7.12280062,217.81,217.72,7.12280062]
[1734522667559,7.12280062,217.81,217.75,2.2964]
[1734522667961,7.12280062,217.79,217.75,2.2964]
[1734522668156,2.04,217.78,217.75,2.2964]
[1734522668563,2.2963,217.77,217.75,2.2964]
[1734522670770,2.2963,217.77,217.74,2.2966]
[1734522673180,2.04,217.78,217.74,2.2966]
[1734522673379,2.04,217.78,217.72,2.2967]
[1734522673380,2.2964,217.76,217.72,2.2967]
[1734522674384,2.2964,217.76,217.71,14.22441298]
[1734522674680,2.2964,217.76,217.73,2.2967]
[1734522677081,2.04,217.78,217.73,7.12280062]
[1734522677978,2.04,217.78,217.74,7.12280062]
[1734522678174,2.04,217.8,217.74,7.12280062]
[1734522678376,4.3361,217.8,217.77,2.2962]
[1734522680573,2.04,217.8,217.78,2.2962]
[1734522681074,2.04,217.83,217.8,2.2959]
[1734522682579,4.3357,217.83,217.8,2.2959]
[1734522683984,7.12280062,217.82,217.8,2.2959]
[1734522684181,9.41860062,217.82,217.79,2.2961]
[1734522684985,11.43860062,217.82,217.79,2.2961]
[1734522685887,2.2959,217.81,217.74,7.12280062]
[1734522686088,7.12280062,217.8,217.73,1.5298]
[1734522686386,7.12280062,217.8,217.73,8.65260062]
[1734522687190,9.41880062,217.8,217.76,2.2963]
[1734522687391,2.02,217.82,217.75,7.12280062]
[1734522687889,7.12280062,217.83,217.75,7.12280062]
[1734522688081,9.14280062,217.83,217.75,7.12280062]
[1734522688682,11.43850062,217.83,217.75,7.12280062]
[1734522689487,11.43850062,217.83,217.78,2.2961]
[1734522689991,11.43850062,217.83,217.75,7.12280062]
[1734522690193,11.43850062,217.83,217.79,2.296]
[1734522691991,2.2958,217.82,217.79,2.296]
[1734522696994,9.14280062,217.83,217.77,7.12280062]
[1734522697188,9.14280062,217.85,217.77,7.12280062]
[1734522697789,11.43830062,217.85,217.81,2.2958]
[1734522697995,27.01160609,217.92,217.79,7.12280062]
[1734522698293,9.41810062,217.87,217.79,7.12280062]
[1734522698494,11.43810062,217.87,217.79,7.12280062]
[1734522699287,2.02,217.87,217.79,7.12280062]
[1734522699493,7.12280062,217.88,217.85,2.2954]
[1734522699692,7.12280062,217.88,217.81,7.12280062]
[1734522700294,9.41800062,217.88,217.83,2.2957]
[1734522700595,7.12280062,217.86,217.83,2.2957]
[1734522700795,7.12280062,217.84,217.79,7.12280062]
[1734522701796,9.41840062,217.84,217.8,2.2959]
[1734522702998,9.41840062,217.84,217.81,2.2959]
[1734522703699,2.2958,217.82,217.79,2.2961]
[1734522703899,7.12280062,217.84,217.79,2.2961]
[1734522704801,2.2957,217.83,217.79,2.2961]
[1734522705900,2.2957,217.83,217.8,2.296]
[1734522710101,7.12280062,217.85,217.83,2.2957]
[1734522710908,4.3154,217.86,217.83,2.2957]
[1734522711105,2.2953,217.87,217.84,2.2956]
[1734522711300,5.42066144,217.94,217.81,7.12280062]
[1734522711506,7.12280062,217.9,217.81,7.12280062]
[1734522711705,9.41780062,217.9,217.85,2.2954]
[1734522712809,9.41780062,217.9,217.86,2.2953]
[1734522713007,2.295,217.9,217.86,2.2953]
[1734522713203,9.41780062,217.9,217.86,2.2953]
[1734522713807,11.43780062,217.9,217.86,2.2953]
[1734522715408,11.43780062,217.9,217.83,7.12280062]
[1734522715607,9.14280062,217.9,217.87,2.2952]
[1734522715906,7.12280062,217.9,217.83,7.12280062]
[1734522716107,9.14280062,217.9,217.87,2.2951]
[1734522717208,9.14280062,217.92,217.85,7.12280062]
[1734522718709,9.14280062,217.92,217.81,1.537]
[1734522718710,7.12280062,217.9,217.81,1.537]
[1734522718909,7.12280062,217.88,217.82,7.12280062]
[1734522719310,7.12280062,217.88,217.86,2.2953]
[1734522720315,9.41770062,217.9,217.86,2.2953]
[1734522720613,2.02,217.92,217.84,7.12280062]
[1734522720812,7.12280062,217.91,217.87,2.2952]
[1734522721512,9.41770062,217.91,217.86,2.2953]
[1734522722219,2.295,217.9,217.85,2.2954]
[1734522725014,2.295,217.9,217.83,2.2956]
[1734522725209,2.295,217.9,217.83,7.12280062]
[1734522725612,2.295,217.9,217.85,2.2954]
[1734522726611,7.12280062,217.89,217.84,2.2955]
[1734522726816,7.12280062,217.89,217.65,13.57862643]
[1734522726817,7.12280062,217.85,217.71,4.5939]
[1734522727116,7.12280062,217.85,217.78,7.12280062]
[1734522727317,7.12280062,217.85,217.76,2.02]
[1734522727512,2.2958,217.82,217.77,7.88940969]
[1734522727818,7.12280062,217.83,217.77,5.59320969]
[1734522728618,2.2959,217.81,217.77,5.59320969]
[1734522733720,7.12280062,217.81,217.75,7.12280062]
[1734522733921,2.2961,217.8,217.75,9.41930062]
[1734522734324,7.12280062,217.81,217.72,1.4683]
[1734522734519,7.12280062,217.79,217.73,5.62628604]
[1734522734725,2.02,217.78,217.72,7.12280062]
[1734522737429,2.02,217.78,217.74,2.2966]
[1734522737629,2.02,217.78,217.72,7.12280062]
[1734522737826,2.02,217.78,217.74,7.12280062]
[1734522738028,4.5436,217.88,217.76,7.12280062]
[1734522738322,2.2958,217.82,217.77,2.2963]
[1734522738525,2.2958,217.82,217.76,7.12280062]
[1734522738526,4.3158,217.82,217.76,7.12280062]
[1734522738928,2.2958,217.82,217.76,7.12280062]
[1734522739528,2.2958,217.82,217.77,2.2962]
[1734522751429,7.12280062,217.81,217.77,2.2962]
[1734522751831,9.41870062,217.81,217.78,2.2962]
[1734522754929,7.12280062,217.81,217.78,2.2962]
[1734522757133,2.2958,217.82,217.78,2.2962]
[1734522757536,2.02,217.83,217.8,2.2959]
[1734522757735,9.14280062,217.83,217.76,5.61908444]
[1734522758538,2.2958,217.82,217.78,2.2962]